fUSD/lending_fUSD_20260304
["ID","MTS","AMOUNT","RATE_DAILY","PERIOD"]
[407652939,1772618221608,281.11,7.1e-05,2]
[407652940,1772618534943,-216.0,7.857e-05,2]
[407652941,1772618534968,-5558.12,7.857e-05,2]
[407652942,1772618535005,-245.711289,8.017e-05,2]
[407652943,1772618535035,-1200.0,8.177e-05,2]
[407652944,1772618535061,-2986.083981,8.178e-05,2]
[407652945,1772618535087,-300.0,8.268e-05,2]
[407652946,1772618535113,-238.0,8.268e-05,2]
[407652947,1772618535143,-507.0,8.269e-05,2]
[407652948,1772618535171,-5558.12,8.271e-05,2]
[407652949,1772618535199,-250.0,8.643e-05,2]
[407652950,1772618535225,-185.84,8.679e-05,2]
[407652951,1772618535250,-5558.12,8.684e-05,2]
[407652952,1772618535275,-581.0,8.994e-05,2]
[407652953,1772618535302,-516.02246236,9.003e-05,2]
[407652954,1772618535328,-500.0,9.003e-05,2]
[407652955,1772618535358,-500.0,9.003e-05,2]
[407652956,1772618535386,-500.0,9.003e-05,2]
[407652957,1772618535415,-500.0,9.003e-05,2]
[407652958,1772618535441,-737.06408998,9.003e-05,2]
[407652959,1772618535468,-503.62224455,9.003e-05,2]
[407652960,1772618535495,-150.0,9.096e-05,2]
[407652961,1772618535520,-5558.12,9.098e-05,2]
[407652962,1772618535545,-5558.12,9.511e-05,2]
[407652963,1772618535571,-731.25382999,9.877e-05,2]
[407652964,1772618597799,-532.80210312,9.925e-05,2]
[407652967,1772618967142,-480.196095,9.875e-05,2]
[407652968,1772618967162,-324.48808503,9.925e-05,2]
[407652978,1772619031368,-231.0,9.91e-05,2]
[407652980,1772619031378,-298.38453609,9.91e-05,2]
[407652981,1772619031388,-833.79049576,9.925e-05,2]
[407652982,1772619031400,-3867.03931609,9.925e-05,2]
[407652983,1772619031409,-179.89843246,9.999e-05,2]
[407652984,1772619031419,-1200.0,9.999e-05,2]
[407652985,1772619031428,-281.3646545,0.0001,2]
[407652986,1772619031438,-281.3646545,0.0001,2]
[407652987,1772619031447,-281.3646545,0.0001,2]
[407652988,1772619031457,-260.90318403,0.000101,2]
[407652989,1772619031467,-5558.12,0.00010338,2]
[407652990,1772619031477,-5558.12,0.00010752,2]
[407652991,1772619031487,-1032.24477946,0.000108,2]
[407652992,1772619031496,-451.21,0.00010842,2]
[407652993,1772619031506,-179.89843246,0.00010899,2]
[407652994,1772619031515,-211.98,0.00010907,2]
[407652995,1772619031525,-499.17,0.00010964,2]
[407652996,1772619031536,-264.0,0.00010999,2]
[407652997,1772619031546,-750.18023506,0.00011,2]
[407652998,1772619031556,-5558.12,0.00011165,2]
[407652999,1772619031566,-3341.42,0.00011203,2]
[407653000,1772619031576,-451.21,0.00011444,2]
[407653001,1772619031586,-1962.27044194,0.00011461,2]
[407653003,1772619031598,-11514.88955806,0.00011461,2]
[407653004,1772619031608,-5558.12,0.00011579,2]
[407653006,1772619031618,-150.0,0.00011626,2]
[407653008,1772619031627,-1991.43,0.00011627,2]
[407653010,1772619031638,-179.89843246,0.00011899,2]
[407653012,1772619031648,-5558.12,0.00011992,2]
[407653014,1772619031657,-7935.93840309,0.00011999,2]
[407653016,1772619031667,-500.0,0.00012,2]
[407653018,1772619031676,-237.76465158,0.00012,2]
[407653020,1772619031686,-500.0,0.00012,2]
[407653022,1772619031696,-500.0,0.00012,2]
[407653024,1772619031705,-500.0,0.00012,2]
[407653026,1772619031715,-500.0,0.00012,2]
[407653028,1772619031724,-500.0,0.00012,2]
[407653031,1772619031734,-500.0,0.00012,2]
[407653034,1772619031744,-500.0,0.00012,2]
[407653037,1772619031754,-500.0,0.00012,2]
[407653040,1772619031763,-246.76721358,0.00012,2]
[407653042,1772619031774,-4475.08453681,0.00012034,2]
[407653044,1772619031783,-451.21,0.00012046,2]
[407653045,1772619031792,-200.0,0.0001206,2]
[407653047,1772619031802,-151.0,0.0001206,2]
[407653049,1772619031812,-151.0,0.0001206,2]
[407653051,1772619031822,-151.0,0.0001206,2]
[407653053,1772619031831,-151.0,0.0001206,2]
[407653055,1772619031840,-151.0,0.0001206,2]
[407653057,1772619031850,-151.0,0.0001206,2]
[407653059,1772619031859,-151.0,0.0001206,2]
[407653061,1772619031868,-151.0,0.0001206,2]
[407653063,1772619031877,-151.0,0.0001206,2]
[407653065,1772619031886,-151.0,0.0001206,2]
[407653067,1772619031896,-151.0,0.0001206,2]
[407653069,1772619031906,-151.0,0.0001206,2]
[407653071,1772619031915,-500.0,0.00012061,2]
[407653073,1772619031924,-378067.39,0.00012068,2]
[407653075,1772619031933,-6724.8184437,0.00012234,2]
[407653076,1772619031942,-201.68847566,0.00012334,2]
[407653078,1772619031951,-5558.12,0.00012406,2]
[407653080,1772619031960,-300.0,0.000126,4]
[407653082,1772619031969,-200.0,0.00012608,2]
[407653084,1772619031979,-451.21,0.00012649,2]
[407653086,1772619031988,-7935.93840308,0.00012655,2]
[407653088,1772619031997,-255.0,0.00012696,2]
[407653090,1772619032006,-700.0,0.000127,4]
[407653092,1772619032014,-278.62090689,0.00012719,2]
[407653094,1772619032023,-978.11402575,0.00012719,2]
[407653095,1772619032032,-160.3022735,0.00012719,2]
[407653096,1772619032040,-1052.60880746,0.00012719,2]
[407653098,1772619032052,-1100.0,0.000128,4]
[407653100,1772619032061,-389.8567223,0.00012807,2]
[407653102,1772619032070,-151.0,0.00012814,2]
[407653103,1772619032081,-151.0,0.00012814,2]
[407653104,1772619032091,-151.0,0.00012814,2]
[407653105,1772619032100,-500.0,0.00012816,2]
[407653106,1772619032110,-500.0,0.00012816,2]
[407653107,1772619032120,-500.0,0.00012816,2]
[407653108,1772619032131,-566.34488123,0.00012816,2]
[407653109,1772619032142,-500.0,0.00012816,2]
[407653110,1772619032151,-234.76231963,0.00012816,2]
[407653111,1772619032162,-500.0,0.00012816,2]
[407653112,1772619032172,-500.0,0.00012816,2]
[407653113,1772619032182,-500.0,0.00012816,2]
[407653114,1772619032192,-500.0,0.00012816,2]
[407653115,1772619032201,-500.0,0.00012816,2]
[407653116,1772619032210,-500.0,0.00012816,2]
[407653117,1772619032219,-500.0,0.00012816,2]
[407653118,1772619032229,-500.0,0.00012816,2]
[407653119,1772619032238,-500.0,0.00012816,2]
[407653120,1772619032248,-500.0,0.00012816,2]
[407653121,1772619032258,-500.0,0.00012816,2]
[407653122,1772619032268,-500.0,0.00012816,2]
[407653123,1772619032278,-500.0,0.00012816,2]
[407653124,1772619032290,-500.0,0.00012816,2]
[407653125,1772619032306,-500.0,0.00012816,2]
[407653126,1772619032316,-500.0,0.00012816,2]
[407653127,1772619032325,-500.0,0.00012816,2]
[407653128,1772619032335,-609.54363516,0.00012816,2]
[407653129,1772619032344,-500.0,0.00012816,2]
[407653130,1772619032355,-500.0,0.00012816,2]
[407653131,1772619032364,-500.0,0.00012816,2]
[407653132,1772619032374,-500.0,0.00012816,2]
[407653133,1772619032384,-500.0,0.00012816,2]
[407653134,1772619032393,-470.5094139,0.00012816,2]
[407653135,1772619032403,-500.0,0.00012816,2]
[407653136,1772619032413,-500.0,0.00012816,2]
[407653137,1772619032430,-500.0,0.00012816,2]
[407653138,1772619032439,-500.0,0.00012816,2]
[407653139,1772619032448,-500.0,0.00012816,2]
[407653140,1772619032458,-500.0,0.00012816,2]
[407653141,1772619032467,-500.0,0.00012816,2]
[407653142,1772619032477,-500.0,0.00012816,2]
[407653143,1772619032487,-500.0,0.00012816,2]
[407653144,1772619032497,-500.0,0.00012816,2]
[407653145,1772619032506,-500.0,0.00012816,2]
[407653146,1772619032515,-500.0,0.00012816,2]
[407653147,1772619032524,-500.0,0.00012816,2]
[407653148,1772619032534,-268.38887757,0.00012816,2]
[407653149,1772619032543,-500.0,0.00012816,2]
[407653150,1772619032555,-500.0,0.00012816,2]
[407653151,1772619032565,-500.0,0.00012816,2]
[407653152,1772619032574,-522.36973727,0.00012816,2]
[407653153,1772619032584,-500.0,0.00012816,2]
[407653154,1772619032593,-500.0,0.00012816,2]
[407653155,1772619032603,-500.0,0.00012816,2]
[407653156,1772619032613,-150.99545794,0.00012816,2]
[407653157,1772619032622,-273.08896644,0.00012816,2]
[407653158,1772619032632,-174.33377655,0.00012816,2]
[407653159,1772619032642,-319522.99393008,0.00012817,2]
[407653160,1772619032827,-96303.33557701,0.00012817,2]
[407653161,1772619032838,-4148.24708365,0.00012817,2]
[407653162,1772619032849,-537.97245266,0.00012817,2]
[407653163,1772619032860,-1632.46595033,0.00012817,2]
[407653164,1772619032871,-1727.40434752,0.00012817,2]
[407653165,1772619032882,-267.09849734,0.00012817,2]
[407653166,1772619032893,-811.7207306,0.00012817,2]
[407653167,1772619032905,-1249.39039257,0.00012817,2]
[407653168,1772619032916,-759.97216531,0.00012817,2]
[407653169,1772619032927,-500.0,0.00012817,2]
[407653170,1772619032938,-5009.72616168,0.00012817,2]
[407653171,1772619032949,-1146.43337587,0.00012817,2]
[407653172,1772619032961,-555.59417147,0.00012817,2]
[407653177,1772619037460,-847.0,0.00012817,2]
[407653178,1772619037474,-576.48343146,0.00012817,2]
[407653179,1772619037486,-956.1785563,0.00012817,2]
[407653180,1772619037497,-350.056,0.00012817,2]
[407653181,1772619037514,-6543.9,0.00012817,2]
[407653182,1772619037528,-33370.11309468,0.00012817,2]
[407653183,1772619037539,-1772278.9830688,0.00012817,2]
[407653184,1772619037572,-4293.41839997,0.00012817,2]
[407653185,1772619037583,-246611.5126127,0.00012817,2]
[407653186,1772619037592,-5558.12,0.0001282,2]
[407653187,1772619037602,-6724.81844367,0.00012864,2]
[407653188,1772619037611,-1500.0,0.000129,4]
[407653189,1772619037621,-669.73072383,0.00013,2]
[407653190,1772619037630,-1649.88961964,0.00013,15]
[407653191,1772619037640,-185.84,0.00013019,2]
[407653192,1772619037649,-1210.39488918,0.00013053,2]
[407653193,1772619037659,-200.0,0.00013156,2]
[407653194,1772619037668,-250.0,0.000132,2]
[407653195,1772619037678,-1000.0,0.00013209,2]
[407653196,1772619037687,-5558.12,0.00013233,2]
[407653197,1772619037696,-451.21,0.00013251,2]
[407653198,1772619037706,-7935.93840308,0.0001331,2]
[407653199,1772619037715,-6724.81844367,0.00013493,2]
[407653200,1772619037724,-5558.12,0.00013647,2]
[407653201,1772619037735,-500.0,0.00013698,2]
[407653202,1772619037744,-500.0,0.00013698,2]
[407653203,1772619037753,-500.0,0.00013698,2]
[407653204,1772619037762,-500.0,0.00013698,2]
[407653205,1772619037771,-500.0,0.00013698,2]
[407653206,1772619037781,-500.0,0.00013698,2]
[407653207,1772619037790,-500.0,0.00013698,2]
[407653208,1772619037799,-500.0,0.00013698,2]
[407653209,1772619037809,-500.0,0.00013698,2]
[407653210,1772619037819,-543.80344608,0.00013699,2]
[407653211,1772619037828,-380.66241225,0.00013699,2]
[407653212,1772619037838,-538.26,0.00013699,2]
[407653213,1772619037847,-200.0,0.00013704,2]
[407653214,1772619037857,-451.21,0.00013853,2]
[407653215,1772619037867,-198.0,0.00013858,2]
[407653216,1772619037876,-150.0,0.00013888,2]
[407653217,1772619037886,-150.0,0.00013888,2]
[407653219,1772619037895,-150.0,0.00013888,2]
[407653221,1772619037904,-150.0,0.00013888,2]
[407653223,1772619037914,-150.0,0.00013888,2]
[407653224,1772619037924,-500.0,0.00013888,2]
[407653225,1772619037934,-500.0,0.00013888,2]
[407653226,1772619037943,-500.0,0.00013888,2]
[407653227,1772619037954,-200.0,0.00013888,2]
[407653228,1772619037964,-150.0,0.00013888,2]
[407653229,1772619037973,-417.0,0.00013888,2]
[407653230,1772619037982,-500.0,0.00013888,2]
[407653231,1772619037992,-500.0,0.00013888,2]
[407653232,1772619038001,-500.0,0.00013888,2]
[407653234,1772619038011,-500.0,0.00013888,2]
[407653235,1772619038020,-150.0,0.00013888,2]
[407653237,1772619038030,-500.0,0.00013888,2]
[407653239,1772619038041,-150.0,0.00013888,2]
[407653241,1772619038051,-150.0,0.00013888,2]
[407653243,1772619038061,-500.0,0.00013888,2]
[407653245,1772619038070,-500.0,0.00013888,2]
[407653247,1772619038080,-150.0,0.00013888,2]
[407653250,1772619038090,-150.0,0.00013888,2]
[407653252,1772619038101,-150.0,0.00013888,2]
[407653253,1772619038110,-500.0,0.00013888,2]
[407653255,1772619038121,-500.0,0.00013888,2]
[407653257,1772619038130,-150.0,0.00013943,2]
[407653259,1772619038139,-150.0,0.00013943,2]
[407653261,1772619038148,-150.0,0.00013943,2]
[407653263,1772619038157,-198.1865322,0.00013943,2]
[407653265,1772619038166,-500.0,0.00013943,2]
[407653267,1772619038175,-500.0,0.00013943,2]
[407653269,1772619038185,-500.0,0.00013943,2]
[407653271,1772619038194,-150.0,0.00013943,2]
[407653273,1772619038203,-417.0,0.00013943,2]
[407653275,1772619038212,-500.0,0.00013943,2]
[407653278,1772619038223,-500.0,0.00013943,2]
[407653280,1772619038232,-500.0,0.00013943,2]
[407653282,1772619038242,-500.0,0.00013943,2]
[407653284,1772619038252,-150.0,0.00013943,2]
[407653286,1772619038261,-500.0,0.00013943,2]
[407653287,1772619038272,-150.0,0.00013943,2]
[407653290,1772619038285,-150.0,0.00013943,2]
[407653292,1772619038295,-500.0,0.00013943,2]
[407653294,1772619038305,-458.88368644,0.00013943,2]
[407653295,1772619038315,-150.0,0.00013943,2]
[407653298,1772619038325,-150.0,0.00013943,2]
[407653299,1772619038335,-500.0,0.00013943,2]
[407653301,1772619038345,-500.0,0.00013943,2]
[407653304,1772619038355,-7935.93840308,0.00013966,2]
[407653306,1772619038365,-241.26843898,0.00013971,2]
[407653308,1772619038375,-614.52527515,0.00013971,2]
[407653310,1772619038384,-1502.21515879,0.00013971,2]
[407653312,1772619038394,-1533.29220969,0.00013971,2]
[407653314,1772619038403,-200.0,0.00013998,2]
[407653316,1772619038413,-150.0,0.00013998,2]
[407653318,1772619038423,-150.0,0.00013998,2]
[407653320,1772619038434,-500.0,0.00013998,2]
[407653322,1772619038444,-500.0,0.00013998,2]
[407653324,1772619038454,-500.0,0.00013998,2]
[407653325,1772619038462,-271.9287113,0.00013998,2]
[407653326,1772619038472,-417.0,0.00013998,2]
[407653328,1772619038481,-500.0,0.00013998,2]
[407653330,1772619038491,-303.4177557,0.00013998,2]
[407653332,1772619038501,-500.0,0.00013998,2]
[407653334,1772619038510,-500.0,0.00013998,2]
[407653336,1772619038519,-175.39984453,0.00013998,2]
[407653338,1772619038529,-640.24994389,0.00013998,2]
[407653340,1772619038538,-150.0,0.00013998,2]
[407653342,1772619038547,-262.55381931,0.00013998,2]
[407653344,1772619038558,-201.74829357,0.00013998,2]
[407653346,1772619038567,-150.0,0.00013998,2]
[407653348,1772619038577,-150.0,0.00013998,2]
[407653350,1772619038586,-500.0,0.00013998,2]
[407653352,1772619038596,-501.59344589,0.00013998,2]
[407653354,1772619038605,-506.0,0.00014,2]
[407653356,1772619038615,-150.0,0.00014052,2]
[407653358,1772619038625,-200.0,0.00014052,2]
[407653360,1772619038635,-500.0,0.00014052,2]
[407653362,1772619038644,-500.0,0.00014052,2]
[407653364,1772619038654,-500.0,0.00014052,2]
[407653366,1772619038664,-417.0,0.00014052,2]
[407653368,1772619038673,-500.0,0.00014052,2]
[407653370,1772619038683,-500.0,0.00014052,2]
[407653372,1772619038692,-200.0,0.00014052,2]
[407653374,1772619038701,-189.89398049,0.00014052,2]
[407653376,1772619038711,-295.37064052,0.00014052,2]
[407653378,1772619038720,-500.0,0.00014052,2]
[407653380,1772619038730,-500.0,0.00014055,2]
[407653382,1772619038739,-151.0,0.00014057,2]
[407653384,1772619038748,-5558.12,0.0001406,2]
[407653386,1772619038757,-150.0,0.00014107,2]
[407653388,1772619038769,-500.0,0.00014107,2]
[407653390,1772619038778,-500.0,0.00014107,2]
[407653392,1772619038788,-500.0,0.00014107,2]
[407653394,1772619038798,-417.0,0.00014107,2]
[407653396,1772619038811,-500.0,0.00014107,2]
[407653398,1772619038822,-565.48619823,0.00014107,2]
[407653400,1772619038832,-500.0,0.00014107,2]
[407653402,1772619038842,-6724.81844367,0.00014123,2]
[407653404,1772619038851,-250.0,0.00014162,2]
[407653406,1772619038860,-315.69818484,0.00014162,2]
[407653408,1772619038870,-500.0,0.00014162,2]
[407653410,1772619038879,-353.87799694,0.00014162,2]
[407653412,1772619038888,-417.0,0.00014162,2]
[407653414,1772619038897,-500.0,0.00014162,2]
[407653416,1772619038907,-500.0,0.00014162,2]
[407653418,1772619038916,-500.0,0.00014217,2]
[407653420,1772619038925,-417.0,0.00014217,2]
[407653422,1772619038936,-500.0,0.00014217,2]
[407653424,1772619038945,-500.0,0.00014217,2]
[407653426,1772619038954,-500.0,0.00014272,2]
[407653428,1772619038963,-417.0,0.00014272,2]
[407653430,1772619038973,-500.0,0.00014272,2]
[407653432,1772619038983,-500.0,0.00014272,2]
[407653434,1772619038992,-500.0,0.00014326,2]
[407653436,1772619039001,-417.0,0.00014326,2]
[407653463,1772619039249,-500.0,0.00014326,2]
[407653465,1772619039259,-500.0,0.00014326,2]
[407653467,1772619039268,-500.07952757,0.00014373,2]
[407653469,1772619039281,-164.86203589,0.00014373,2]
[407653471,1772619039290,-170.96404904,0.00014373,2]
[407653473,1772619039300,-500.0,0.00014373,2]
[407653475,1772619039310,-500.0,0.00014373,2]
[407653477,1772619039321,-500.0,0.00014373,2]
[407653479,1772619039331,-165.49194322,0.00014373,2]
[407653481,1772619039340,-500.0,0.00014373,2]
[407653483,1772619039350,-500.12727946,0.00014373,2]
[407653485,1772619039361,-167.10737651,0.00014373,2]
[407653487,1772619039371,-500.0,0.00014373,2]
[407653489,1772619039381,-500.0,0.00014373,2]
[407653491,1772619039391,-500.0,0.00014373,2]
[407653493,1772619039400,-500.0,0.00014373,2]
[407653495,1772619039410,-500.0,0.00014373,2]
[407653497,1772619039419,-501.14462458,0.00014373,2]
[407653499,1772619039429,-167.10131265,0.00014373,2]
[407653501,1772619039438,-500.0,0.00014373,2]
[407653503,1772619039448,-240.12890457,0.00014373,2]
[407653505,1772619039457,-500.0,0.00014373,2]
[407653506,1772619039472,-163.84916766,0.00014373,2]
[407653508,1772619039481,-219.27895435,0.00014373,2]
[407653510,1772619039491,-500.0,0.00014373,2]
[407653512,1772619039500,-500.0,0.00014373,2]
[407653514,1772619039509,-500.0,0.00014373,2]
[407653517,1772619039519,-500.0,0.00014373,2]
[407653520,1772619039532,-500.0,0.00014373,2]
[407653522,1772619039541,-500.0,0.00014373,2]
[407653524,1772619039552,-500.0,0.00014373,2]
[407653526,1772619039561,-500.0,0.00014373,2]
[407653528,1772619039571,-500.0,0.00014373,2]
[407653530,1772619039580,-500.0,0.00014373,2]
[407653532,1772619039590,-500.0,0.00014373,2]
[407653534,1772619039601,-167.05029501,0.00014373,2]
[407653536,1772619039611,-500.0,0.00014373,2]
[407653538,1772619039620,-500.0,0.00014373,2]
[407653541,1772619039630,-500.0,0.00014373,2]
[407653543,1772619039639,-167.08134951,0.00014373,2]
[407653545,1772619039648,-500.0,0.00014373,2]
[407653547,1772619039658,-500.0,0.00014373,2]
[407653549,1772619039667,-500.0,0.00014381,2]
[407653551,1772619039676,-417.0,0.00014381,2]
[407653553,1772619039686,-500.0,0.00014381,2]
[407653555,1772619039695,-500.0,0.00014381,2]
[407653557,1772619039704,-500.0,0.00014436,2]
[407653559,1772619039714,-417.0,0.00014436,2]
[407653561,1772619039723,-500.0,0.00014436,2]
[407653563,1772619039733,-500.0,0.00014436,2]
[407653565,1772619039742,-451.21,0.00014456,2]
[407653567,1772619039751,-5558.12,0.00014474,2]
[407653569,1772619039762,-500.0,0.00014491,2]
[407653571,1772619039771,-417.0,0.00014491,2]
[407653573,1772619039781,-500.0,0.00014491,2]
[407653575,1772619039790,-500.0,0.00014491,2]
[407653577,1772619039800,-499.99,0.00014504,2]
[407653579,1772619039809,-507.03,0.00014504,2]
[407653581,1772619039819,-150.99,0.00014504,2]
[407653583,1772619039829,-1614.58,0.00014504,2]
[407653585,1772619039838,-150.99,0.00014504,2]
[407653587,1772619039848,-299.99,0.00014504,2]
[407653589,1772619039858,-999.99,0.00014504,2]
[407653591,1772619039867,-9999.99,0.00014504,2]
[407653593,1772619039876,-556.89,0.00014504,2]
[407653595,1772619039886,-430.04,0.00014504,2]
[407653597,1772619039895,-9999.99,0.00014504,2]
[407653599,1772619039905,-1544.26,0.00014504,2]
[407653601,1772619039917,-500.02,0.00014504,2]
[407653603,1772619039927,-9732.73,0.00014504,2]
[407653605,1772619039936,-294.0,0.00014546,2]
[407653607,1772619039946,-417.0,0.00014546,2]
[407653609,1772619039955,-500.0,0.00014546,2]
[407653611,1772619039965,-500.0,0.00014546,2]
[407653613,1772619039974,-417.0,0.000146,2]
[407653615,1772619039984,-500.0,0.000146,2]
[407653617,1772619039993,-500.0,0.000146,2]
[407653619,1772619040003,-7935.93840308,0.00014622,2]
[407653621,1772619040012,-417.0,0.00014655,2]
[407653623,1772619040021,-500.0,0.00014655,2]
[407653625,1772619040030,-159.53117501,0.00014655,2]
[407653627,1772619040040,-417.0,0.0001471,2]
[407653629,1772619040050,-500.0,0.0001471,2]
[407653631,1772619040060,-6724.81844367,0.00014752,2]
[407653633,1772619040069,-417.0,0.00014765,2]
[407653635,1772619040078,-500.0,0.00014765,2]
[407653637,1772619040088,-417.0,0.0001482,2]
[407653639,1772619040098,-500.0,0.0001482,2]
[407653641,1772619040107,-417.0,0.00014874,2]
[407653643,1772619040117,-500.0,0.00014874,2]
[407653645,1772619040127,-5558.12,0.00014887,2]
[407653647,1772619040136,-500.0,0.00014921,2]
[407653648,1772619040147,-500.0,0.00014921,2]
[407653650,1772619040160,-500.0,0.00014921,2]
[407653651,1772619040169,-500.0,0.00014921,2]
[407653652,1772619040178,-500.0,0.00014921,2]
[407653653,1772619040187,-573.34903849,0.00014921,2]
[407653654,1772619040195,-500.0,0.00014921,2]
[407653655,1772619040205,-500.0,0.00014921,2]
[407653656,1772619040214,-500.0,0.00014921,2]
[407653657,1772619040223,-500.18261012,0.00014921,2]
[407653658,1772619040232,-500.0,0.00014921,2]
[407653659,1772619040241,-500.0,0.00014921,2]
[407653660,1772619040249,-500.0,0.00014921,2]
[407653661,1772619040258,-500.0,0.00014921,2]
[407653662,1772619040267,-500.0,0.00014921,2]
[407653663,1772619040279,-500.34430685,0.00014921,2]
[407653664,1772619040288,-500.37983606,0.00014921,2]
[407653665,1772619040301,-502.25687536,0.00014921,2]
[407653666,1772619040310,-500.0,0.00014921,2]
[407653667,1772619040320,-500.0,0.00014921,2]
[407653668,1772619040329,-407.27175767,0.00014921,2]
[407653669,1772619040338,-500.0,0.00014921,2]
[407653670,1772619040347,-309.98091476,0.00014921,2]
[407653671,1772619040357,-417.0,0.00014929,2]
[407653672,1772619040367,-217.010328,0.00014929,2]
[407653673,1772619040376,-417.0,0.00014984,2]
[407653674,1772619040385,-250.0,0.00015,2]
[407653675,1772619040396,-417.0,0.00015039,2]
[407653676,1772619040405,-451.21,0.00015058,2]
[407653677,1772619040415,-417.0,0.00015093,2]
[407653678,1772619040424,-425.65459865,0.00015148,2]
[407653679,1772619040433,-5309.0,0.00015208,2]
[407653680,1772619040444,-7935.93840308,0.00015277,2]
[407653681,1772619040453,-5558.12,0.00015301,2]
[407653682,1772619040471,-278.62090687,0.0001531,2]
[407653683,1772619040481,-978.11402573,0.0001531,2]
[407653685,1772619040490,-160.30227348,0.0001531,2]
[407653687,1772619040500,-1052.60880746,0.0001531,2]
[407653689,1772619040510,-6724.81844367,0.00015382,2]
[407653692,1772619040520,-451.21,0.0001566,2]
[407653695,1772619040529,-3341.42,0.00015685,2]
[407653698,1772619040539,-5558.12,0.00015714,2]
[407653701,1772619040548,-150.0,0.00015801,2]
[407653703,1772619040559,-153.19702547,0.00015888,2]
[407653705,1772619040569,-7935.93840308,0.00015933,2]
[407653706,1772619040578,-6724.81844367,0.00016011,2]
[407653708,1772619040588,-5000.0,0.000162,5]
[407653710,1772619040597,-451.21,0.00016263,2]
[407653712,1772619040607,-500.0,0.00016521,2]
[407653714,1772619040617,-1212.0,0.00016556,2]
[407653716,1772619040626,-921.0,0.00016556,2]
[407653718,1772619040635,-2458.0,0.00016556,2]
[407653720,1772619040644,-5987.0,0.00016556,2]
[407653722,1772619040653,-1000.0,0.00016588,2]
[407653724,1772619040662,-7935.93840308,0.00016589,2]
[407653727,1772619040672,-177.22,0.00016614,2]
[407653729,1772619040682,-6724.81844367,0.00016641,2]
[407653731,1772619040691,-184.25,0.00016699,2]
[407653733,1772619040704,-426.58,0.0001679,2]
[407653735,1772619040713,-150.0,0.0001683,2]
[407653737,1772619040723,-150.0,0.0001683,7]
[407653739,1772619040732,-315.74082907,0.00016973,2]
[407653741,1772619040748,-500.0,0.00016973,2]
[407653743,1772619040757,-500.0,0.00016973,2]
[407653745,1772619040767,-182.43846544,0.00016973,2]
[407653747,1772619040776,-500.0,0.00017,7]
[407653749,1772619040785,-500.0,0.00017,7]
[407653751,1772619040794,-500.0,0.00017,7]
[407653753,1772619040806,-500.0,0.00017,7]
[407653755,1772619040815,-500.0,0.00017,7]
[407653757,1772619040825,-500.0,0.00017,7]
[407653759,1772619040834,-500.0,0.00017,7]
[407653762,1772619040843,-500.0,0.00017,7]
[407653763,1772619040852,-500.0,0.00017,7]
[407653765,1772619040862,-500.0,0.00017,7]
[407653767,1772619040871,-500.0,0.00017,7]
[407653769,1772619040880,-500.0,0.00017,7]
[407653771,1772619040889,-500.0,0.00017,7]
[407653773,1772619040899,-500.0,0.00017,7]
[407653775,1772619040908,-500.0,0.00017,7]
[407653777,1772619040917,-500.0,0.00017,7]